[Event "Titled Tuesday Blitz November 08 Early 2022"]
[White "Gulevich, Artem"]
[Black "Ciuffoletti, Paolo"]
[WhiteFideId "24119580"]
[BlackFideId "807630"]
[WhiteElo "2218"]
[BlackElo "2143"]
[Result "1/2-1/2"]
[Round "10"]
[TimeControl "180+1"]
[Date "2022.11.09"]
[WhiteClock "0:00:23"]
[BlackClock "0:00:02"]

1. Nf3 {[%clk 0:03:00]}  d5 {[%clk 0:02:57]} 2. b3 {[%clk 0:02:59]}  Nf6 {[%clk 0:02:44]} 3. Bb2 {[%clk 0:02:59]}  e6 {[%clk 0:02:43]} 4. e3 {[%clk 0:03:00]}  c5 {[%clk 0:02:43]} 5. Be2 {[%clk 0:03:00]}  Nc6 {[%clk 0:02:43]} 6. O-O {[%clk 0:03:00]}  Be7 {[%clk 0:02:43]} 7. d4 {[%clk 0:03:01]}  Ne4 {[%clk 0:02:41]} 8. dxc5 {[%clk 0:02:54]}  Bf6 {[%clk 0:02:36]} 9. c3 {[%clk 0:02:38]}  Nxc5 {[%clk 0:02:34]} 10. Nbd2 {[%clk 0:02:37]}  O-O {[%clk 0:02:33]} 11. Rc1 {[%clk 0:02:32]}  e5 {[%clk 0:02:29]} 12. Qc2 {[%clk 0:02:31]}  e4 {[%clk 0:02:26]} 13. Nd4 {[%clk 0:02:30]}  Ne5 {[%clk 0:02:14]} 14. Rcd1 {[%clk 0:02:21]}  Bg4 {[%clk 0:02:07]} 15. Bxg4 {[%clk 0:02:03]}  Nxg4 {[%clk 0:02:05]} 16. h3 {[%clk 0:02:04]}  Ne5 {[%clk 0:02:00]} 17. c4 {[%clk 0:02:03]}  Ncd3 {[%clk 0:01:43]} 18. cxd5 {[%clk 0:01:56]}  Qxd5 {[%clk 0:01:42]} 19. Ba1 {[%clk 0:01:16]}  Rac8 {[%clk 0:01:40]} 20. Qb1 {[%clk 0:01:17]}  Be7 {[%clk 0:01:05]} 21. Nf5 {[%clk 0:01:09]}  Ba3 {[%clk 0:00:52]} 22. Nxg7 {[%clk 0:00:58]}  Kxg7 {[%clk 0:00:48]} 23. Nxe4 {[%clk 0:00:57]}  Qxe4 {[%clk 0:00:35]} 24. Rxd3 {[%clk 0:00:48]}  Kg8 {[%clk 0:00:23]} 25. Rd5 {[%clk 0:00:41]}  Qxb1 {[%clk 0:00:21]} 26. Rxb1 {[%clk 0:00:40]}  Ng6 {[%clk 0:00:13]} 27. Rd7 {[%clk 0:00:36]}  b5 {[%clk 0:00:04]} 28. Rxa7 {[%clk 0:00:36]}  b4 {[%clk 0:00:04]} 29. g3 {[%clk 0:00:34]}  Rc2 {[%clk 0:00:03]} 30. h4 {[%clk 0:00:34]}  Rd8 {[%clk 0:00:03]} 31. h5 {[%clk 0:00:33]}  Nf8 {[%clk 0:00:03]} 32. h6 {[%clk 0:00:27]}  Rdd2 {[%clk 0:00:02]} 33. Bg7 {[%clk 0:00:22]}  Rxf2 {[%clk 0:00:01]} 34. Ra8 {[%clk 0:00:22]}  Rg2+ {[%clk 0:00:01]} 35. Kf1 {[%clk 0:00:22]}  Rgf2+ {[%clk 0:00:01]} 36. Ke1 {[%clk 0:00:22]}  Rfe2+ {[%clk 0:00:02]} 37. Kf1 {[%clk 0:00:22]}  Rf2+ {[%clk 0:00:02]} 38. Kg1 {[%clk 0:00:23]}  Rg2+ {[%clk 0:00:02]} 39. Kf1 {[%clk 0:00:23]}  Rgf2+ {[%clk 0:00:02]} 1/2-1/2


[Site "https://www.chess.com"]

[Event "Titled Tuesday Blitz November 08 Early 2022"]
[White "Ilkhomi, Jaloliddin"]
[Black "Kim, Sergey"]
[WhiteFideId "14700948"]
[BlackFideId "13700570"]
[WhiteElo "2045"]
[BlackElo "2592"]
[Result "1-0"]
[Round "10"]
[TimeControl "180+1"]
[Date "2022.11.09"]
[WhiteClock "0:00:19"]
[BlackClock "0:00:07"]

1. d4 {[%clk 0:03:00]}  Nf6 {[%clk 0:02:59]} 2. Bf4 {[%clk 0:03:00]}  g6 {[%clk 0:02:59]} 3. e3 {[%clk 0:03:00]}  d6 {[%clk 0:02:58]} 4. Nf3 {[%clk 0:03:00]}  Bg7 {[%clk 0:02:58]} 5. h3 {[%clk 0:03:01]}  O-O {[%clk 0:02:58]} 6. Be2 {[%clk 0:03:02]}  Nbd7 {[%clk 0:02:58]} 7. O-O {[%clk 0:03:02]}  b6 {[%clk 0:02:58]} 8. Bh2 {[%clk 0:03:03]}  Bb7 {[%clk 0:02:58]} 9. c4 {[%clk 0:03:03]}  Ne4 {[%clk 0:02:54]} 10. Nc3 {[%clk 0:03:02]}  Nxc3 {[%clk 0:02:54]} 11. bxc3 {[%clk 0:03:03]}  e5 {[%clk 0:02:51]} 12. a4 {[%clk 0:03:00]}  a5 {[%clk 0:02:50]} 13. Rb1 {[%clk 0:02:57]}  Rb8 {[%clk 0:02:48]} 14. Nd2 {[%clk 0:02:53]}  Qe7 {[%clk 0:02:43]} 15. Bf3 {[%clk 0:02:52]}  e4 {[%clk 0:02:43]} 16. Be2 {[%clk 0:02:52]}  f5 {[%clk 0:02:43]} 17. Qb3 {[%clk 0:02:51]}  Kh8 {[%clk 0:02:42]} 18. Qc2 {[%clk 0:02:36]}  Bc6 {[%clk 0:02:37]} 19. c5 {[%clk 0:02:31]}  bxc5 {[%clk 0:02:33]} 20. Nc4 {[%clk 0:02:31]}  Ra8 {[%clk 0:02:26]} 21. Na3 {[%clk 0:02:19]}  Nb6 {[%clk 0:02:03]} 22. Bb5 {[%clk 0:02:14]}  Bxb5 {[%clk 0:01:58]} 23. Rxb5 {[%clk 0:02:13]}  cxd4 {[%clk 0:01:51]} 24. cxd4 {[%clk 0:02:14]}  Qf7 {[%clk 0:01:45]} 25. Bxd6 {[%clk 0:02:10]}  Rfc8 {[%clk 0:01:32]} 26. Bf4 {[%clk 0:01:53]}  Nd5 {[%clk 0:01:32]} 27. Qc5 {[%clk 0:01:46]}  c6 {[%clk 0:01:24]} 28. Rb2 {[%clk 0:01:40]}  Nb4 {[%clk 0:01:20]} 29. Qc4 {[%clk 0:01:29]}  Qf8 {[%clk 0:01:14]} 30. Nc2 {[%clk 0:01:21]}  Nd3 {[%clk 0:01:10]} 31. Rb7 {[%clk 0:01:18]}  Nxf4 {[%clk 0:00:56]} 32. exf4 {[%clk 0:01:18]}  Rab8 {[%clk 0:00:53]} 33. Rfb1 {[%clk 0:01:10]}  Rxb7 {[%clk 0:00:47]} 34. Rxb7 {[%clk 0:01:11]}  Qg8 {[%clk 0:00:47]} 35. Qc5 {[%clk 0:01:02]}  Qd5 {[%clk 0:00:42]} 36. Qe7 {[%clk 0:00:58]}  Rg8 {[%clk 0:00:42]} 37. Rd7 {[%clk 0:00:54]}  Qa2 {[%clk 0:00:40]} 38. Ne3 {[%clk 0:00:53]}  Qxa4 {[%clk 0:00:35]} 39. d5 {[%clk 0:00:45]}  cxd5 {[%clk 0:00:18]} 40. Nxd5 {[%clk 0:00:45]}  Qa1+ {[%clk 0:00:17]} 41. Kh2 {[%clk 0:00:45]}  Qd4 {[%clk 0:00:15]} 42. Rd8 {[%clk 0:00:24]}  h6 {[%clk 0:00:09]} 43. Rxg8+ {[%clk 0:00:19]}  Kxg8 {[%clk 0:00:09]} 44. Qe6+ {[%clk 0:00:20]}  Kh7 {[%clk 0:00:09]} 45. Ne7 {[%clk 0:00:20]}  h5 {[%clk 0:00:07]} 46. Qxg6+ {[%clk 0:00:19]} 1-0


[Site "https://www.chess.com"]

[Event "Titled Tuesday Blitz November 08 Early 2022"]
[White "Jiang, Andrew"]
[Black "Pinheiro, Iung Alicio de O."]
[WhiteFideId "30953510"]
[BlackFideId "2104350"]
[WhiteElo "1868"]
[BlackElo "2283"]
[Result "0-1"]
[Round "10"]
[TimeControl "180+1"]
[Date "2022.11.09"]
[WhiteClock "0:00:09"]
[BlackClock "0:00:17"]

1. e4 {[%clk 0:03:00]}  c5 {[%clk 0:02:54]} 2. Nf3 {[%clk 0:03:01]}  Nc6 {[%clk 0:02:54]} 3. d4 {[%clk 0:03:01]}  cxd4 {[%clk 0:02:53]} 4. Nxd4 {[%clk 0:03:01]}  e5 {[%clk 0:02:54]} 5. Nb5 {[%clk 0:03:01]}  d6 {[%clk 0:02:54]} 6. c4 {[%clk 0:03:00]}  f5 {[%clk 0:02:44]} 7. exf5 {[%clk 0:02:40]}  Bxf5 {[%clk 0:02:45]} 8. N1c3 {[%clk 0:02:30]}  a6 {[%clk 0:02:44]} 9. Na3 {[%clk 0:02:30]}  Nf6 {[%clk 0:02:44]} 10. Bd3 {[%clk 0:02:26]}  Be6 {[%clk 0:02:43]} 11. O-O {[%clk 0:02:25]}  Be7 {[%clk 0:02:43]} 12. h3 {[%clk 0:02:18]}  O-O {[%clk 0:02:42]} 13. Be3 {[%clk 0:02:19]}  Rc8 {[%clk 0:02:20]} 14. Nc2 {[%clk 0:02:14]}  Qe8 {[%clk 0:02:18]} 15. Qe2 {[%clk 0:02:10]}  Nh5 {[%clk 0:02:10]} 16. Rad1 {[%clk 0:02:04]}  Qf7 {[%clk 0:01:47]} 17. b3 {[%clk 0:01:43]}  Rce8 {[%clk 0:01:22]} 18. Nd5 {[%clk 0:01:33]}  Bd8 {[%clk 0:01:22]} 19. Be4 {[%clk 0:01:27]}  Nf4 {[%clk 0:01:10]} 20. Bxf4 {[%clk 0:01:22]}  exf4 {[%clk 0:01:10]} 21. f3 {[%clk 0:01:09]}  Kh8 {[%clk 0:01:03]} 22. Qf2 {[%clk 0:01:07]}  Qh5 {[%clk 0:00:57]} 23. Qd2 {[%clk 0:00:34]}  Qh6 {[%clk 0:00:38]} 24. Nd4 {[%clk 0:00:24]}  Bd7 {[%clk 0:00:25]} 25. Nxc6 {[%clk 0:00:20]}  bxc6 {[%clk 0:00:26]} 26. Nc3 {[%clk 0:00:20]}  Bb6+ {[%clk 0:00:24]} 27. Kh2 {[%clk 0:00:21]}  Qh4 {[%clk 0:00:22]} 28. Qe1 {[%clk 0:00:20]}  Qf6 {[%clk 0:00:21]} 29. Na4 {[%clk 0:00:16]}  Bc7 {[%clk 0:00:20]} 30. Qf2 {[%clk 0:00:15]}  Re5 {[%clk 0:00:20]} 31. g3 {[%clk 0:00:14]}  fxg3+ {[%clk 0:00:19]} 32. Qxg3 {[%clk 0:00:15]}  d5 {[%clk 0:00:19]} 33. cxd5 {[%clk 0:00:14]}  cxd5 {[%clk 0:00:19]} 34. Bc2 {[%clk 0:00:11]}  Bxa4 {[%clk 0:00:19]} 35. bxa4 {[%clk 0:00:10]}  Re2+ {[%clk 0:00:19]} 36. Rf2 {[%clk 0:00:10]}  Bxg3+ {[%clk 0:00:18]} 37. Kxg3 {[%clk 0:00:09]}  Qg5+ {[%clk 0:00:17]} 0-1


[Site "https://www.chess.com"]

[Event "Titled Tuesday Blitz November 08 Early 2022"]
[White "Khamdamova, Afruza"]
[Black "Bon, Michael"]
[WhiteFideId "14210444"]
[BlackFideId "620696"]
[WhiteElo "2018"]
[BlackElo "2330"]
[Result "1-0"]
[Round "10"]
[TimeControl "180+1"]
[Date "2022.11.09"]
[WhiteClock "0:00:24"]
[BlackClock "0:00:11"]

1. e4 {[%clk 0:03:00]}  e6 {[%clk 0:03:00]} 2. d4 {[%clk 0:03:00]}  d5 {[%clk 0:03:01]} 3. Nd2 {[%clk 0:03:00]}  Nf6 {[%clk 0:03:00]} 4. e5 {[%clk 0:02:57]}  Nfd7 {[%clk 0:03:01]} 5. f4 {[%clk 0:02:57]}  c5 {[%clk 0:03:02]} 6. c3 {[%clk 0:02:57]}  Nc6 {[%clk 0:03:02]} 7. Ndf3 {[%clk 0:02:58]}  Qb6 {[%clk 0:03:02]} 8. Ne2 {[%clk 0:02:58]}  cxd4 {[%clk 0:03:00]} 9. cxd4 {[%clk 0:02:57]}  Bb4+ {[%clk 0:02:58]} 10. Bd2 {[%clk 0:02:57]}  Be7 {[%clk 0:02:57]} 11. Bc3 {[%clk 0:02:49]}  h6 {[%clk 0:02:43]} 12. Ng3 {[%clk 0:02:32]}  g5 {[%clk 0:02:30]} 13. f5 {[%clk 0:02:05]}  Bb4 {[%clk 0:02:08]} 14. fxe6 {[%clk 0:01:56]}  fxe6 {[%clk 0:02:07]} 15. Qd3 {[%clk 0:01:39]}  Nf8 {[%clk 0:01:48]} 16. Be2 {[%clk 0:01:28]}  Bd7 {[%clk 0:01:47]} 17. O-O {[%clk 0:01:27]}  O-O-O {[%clk 0:01:44]} 18. Bxb4 {[%clk 0:01:22]}  Qxb4 {[%clk 0:01:36]} 19. a3 {[%clk 0:01:18]}  Qe7 {[%clk 0:01:34]} 20. b4 {[%clk 0:01:15]}  Kb8 {[%clk 0:01:28]} 21. b5 {[%clk 0:01:15]}  Na5 {[%clk 0:01:26]} 22. Nd2 {[%clk 0:01:02]}  Be8 {[%clk 0:01:16]} 23. Nb3 {[%clk 0:01:00]}  Bg6 {[%clk 0:01:11]} 24. Qe3 {[%clk 0:00:58]}  Nxb3 {[%clk 0:01:04]} 25. Qxb3 {[%clk 0:00:57]}  h5 {[%clk 0:01:00]} 26. Rfc1 {[%clk 0:00:56]}  h4 {[%clk 0:01:00]} 27. Nf1 {[%clk 0:00:55]}  Be4 {[%clk 0:00:50]} 28. b6 {[%clk 0:00:52]}  a6 {[%clk 0:00:40]} 29. Rc7 {[%clk 0:00:52]}  Nd7 {[%clk 0:00:40]} 30. Rac1 {[%clk 0:00:34]}  Rhf8 {[%clk 0:00:32]} 31. Qc3 {[%clk 0:00:26]}  Qe8 {[%clk 0:00:11]} 32. Rxb7+ {[%clk 0:00:24]} 1-0


[Site "https://www.chess.com"]

[Event "Titled Tuesday Blitz November 08 Early 2022"]
[White "Kodinets, Konstantin L."]
[Black "Guimaraes, Wagner Peixoto"]
[WhiteFideId "4122011"]
[BlackFideId "2100940"]
[WhiteElo "2447"]
[BlackElo "2231"]
[Result "1-0"]
[Round "10"]
[TimeControl "180+1"]
[Date "2022.11.09"]
[WhiteClock "0:00:53"]
[BlackClock "0:00:48"]

1. d4 {[%clk 0:02:57]}  Nf6 {[%clk 0:02:56]} 2. Nf3 {[%clk 0:02:57]}  g6 {[%clk 0:02:56]} 3. Bg5 {[%clk 0:02:58]}  Bg7 {[%clk 0:02:55]} 4. Nbd2 {[%clk 0:02:58]}  h6 {[%clk 0:02:51]} 5. Bh4 {[%clk 0:02:57]}  O-O {[%clk 0:02:48]} 6. e4 {[%clk 0:02:57]}  d5 {[%clk 0:02:49]} 7. exd5 {[%clk 0:02:54]}  Nxd5 {[%clk 0:02:48]} 8. c3 {[%clk 0:02:55]}  c5 {[%clk 0:02:44]} 9. dxc5 {[%clk 0:02:56]}  Nd7 {[%clk 0:02:43]} 10. Nb3 {[%clk 0:02:55]}  Nf4 {[%clk 0:02:39]} 11. Bg3 {[%clk 0:02:48]}  Ne6 {[%clk 0:02:38]} 12. Bc4 {[%clk 0:02:36]}  Nexc5 {[%clk 0:02:28]} 13. O-O {[%clk 0:02:34]}  Ne4 {[%clk 0:02:27]} 14. Re1 {[%clk 0:02:33]}  Nxg3 {[%clk 0:02:27]} 15. hxg3 {[%clk 0:02:34]}  Nb6 {[%clk 0:02:23]} 16. Bb5 {[%clk 0:02:25]}  Qxd1 {[%clk 0:02:17]} 17. Raxd1 {[%clk 0:02:25]}  a6 {[%clk 0:02:17]} 18. Bf1 {[%clk 0:02:23]}  e6 {[%clk 0:02:08]} 19. Na5 {[%clk 0:02:19]}  Rb8 {[%clk 0:01:57]} 20. Ne5 {[%clk 0:02:17]}  Nd5 {[%clk 0:01:39]} 21. c4 {[%clk 0:02:05]}  Nb4 {[%clk 0:01:31]} 22. a3 {[%clk 0:02:01]}  Bxe5 {[%clk 0:01:29]} 23. Rxe5 {[%clk 0:02:00]}  Nc6 {[%clk 0:01:28]} 24. Nxc6 {[%clk 0:01:59]}  bxc6 {[%clk 0:01:29]} 25. b4 {[%clk 0:01:59]}  Kg7 {[%clk 0:01:25]} 26. Rd6 {[%clk 0:01:51]}  Kf6 {[%clk 0:01:24]} 27. f4 {[%clk 0:01:51]}  Bb7 {[%clk 0:01:17]} 28. Re3 {[%clk 0:01:03]}  Rfd8 {[%clk 0:01:11]} 29. Red3 {[%clk 0:01:00]}  Rxd6 {[%clk 0:01:05]} 30. Rxd6 {[%clk 0:01:00]}  Ke7 {[%clk 0:01:06]} 31. c5 {[%clk 0:01:00]}  Rd8 {[%clk 0:01:00]} 32. Rxd8 {[%clk 0:00:59]}  Kxd8 {[%clk 0:01:01]} 33. Kf2 {[%clk 0:00:59]}  Ke7 {[%clk 0:01:01]} 34. Ke3 {[%clk 0:00:58]}  f6 {[%clk 0:00:59]} 35. Kd4 {[%clk 0:00:58]}  g5 {[%clk 0:00:58]} 36. Bd3 {[%clk 0:00:52]}  h5 {[%clk 0:00:52]} 37. fxg5 {[%clk 0:00:52]}  fxg5 {[%clk 0:00:53]} 38. Ke5 {[%clk 0:00:52]}  h4 {[%clk 0:00:47]} 39. gxh4 {[%clk 0:00:52]}  gxh4 {[%clk 0:00:48]} 40. Be4 {[%clk 0:00:53]} 1-0


[Site "https://www.chess.com"]

[Event "Titled Tuesday Blitz November 08 Early 2022"]
[White "Kohler, Aran"]
[Black "Lehtosaari, Mauri"]
[WhiteFideId "1002856"]
[BlackFideId "501999"]
[WhiteElo "2361"]
[BlackElo "2503"]
[Result "0-1"]
[Round "10"]
[TimeControl "180+1"]
[Date "2022.11.09"]
[WhiteClock "0:00:02"]
[BlackClock "0:00:18"]

1. d4 {[%clk 0:02:59]}  d5 {[%clk 0:02:59]} 2. Bf4 {[%clk 0:02:58]}  c5 {[%clk 0:02:59]} 3. Bxb8 {[%clk 0:02:55]}  Rxb8 {[%clk 0:02:58]} 4. e3 {[%clk 0:02:52]}  Nf6 {[%clk 0:02:55]} 5. dxc5 {[%clk 0:02:50]}  Qa5+ {[%clk 0:02:49]} 6. c3 {[%clk 0:02:48]}  Qxc5 {[%clk 0:02:49]} 7. Nd2 {[%clk 0:02:47]}  a6 {[%clk 0:02:27]} 8. Ngf3 {[%clk 0:02:47]}  Bg4 {[%clk 0:02:26]} 9. h3 {[%clk 0:02:46]}  Bxf3 {[%clk 0:02:21]} 10. Nxf3 {[%clk 0:02:45]}  e6 {[%clk 0:02:21]} 11. Qa4+ {[%clk 0:02:40]}  Qc6 {[%clk 0:02:15]} 12. Qxc6+ {[%clk 0:02:35]}  bxc6 {[%clk 0:02:16]} 13. O-O-O {[%clk 0:02:34]}  a5 {[%clk 0:02:16]} 14. Ne5 {[%clk 0:02:32]}  Rb6 {[%clk 0:02:12]} 15. Rd4 {[%clk 0:02:17]}  Bd6 {[%clk 0:02:08]} 16. Nxc6 {[%clk 0:02:12]}  Rxc6 {[%clk 0:02:04]} 17. Bb5 {[%clk 0:02:12]}  Kd7 {[%clk 0:02:03]} 18. Ra4 {[%clk 0:02:07]}  Bc7 {[%clk 0:02:00]} 19. Rd1 {[%clk 0:02:02]}  Rb8 {[%clk 0:02:00]} 20. Bxc6+ {[%clk 0:01:56]}  Kxc6 {[%clk 0:02:00]} 21. c4 {[%clk 0:01:47]}  Ne4 {[%clk 0:01:40]} 22. cxd5+ {[%clk 0:01:46]}  exd5 {[%clk 0:01:41]} 23. f3 {[%clk 0:01:41]}  Nf6 {[%clk 0:01:16]} 24. Kb1 {[%clk 0:01:38]}  Bb6 {[%clk 0:01:11]} 25. e4 {[%clk 0:01:28]}  dxe4 {[%clk 0:01:10]} 26. fxe4 {[%clk 0:01:25]}  Re8 {[%clk 0:01:10]} 27. Rc4+ {[%clk 0:01:17]}  Kb5 {[%clk 0:01:09]} 28. b3 {[%clk 0:01:14]}  Nxe4 {[%clk 0:00:49]} 29. a4+ {[%clk 0:01:08]}  Ka6 {[%clk 0:00:49]} 30. Rd7 {[%clk 0:01:06]}  f5 {[%clk 0:00:42]} 31. Rxg7 {[%clk 0:01:05]}  Nd2+ {[%clk 0:00:42]} 32. Kc2 {[%clk 0:01:03]}  Nxc4 {[%clk 0:00:43]} 33. bxc4 {[%clk 0:01:03]}  Re4 {[%clk 0:00:39]} 34. Kd3 {[%clk 0:01:02]}  Rd4+ {[%clk 0:00:38]} 35. Kc3 {[%clk 0:01:02]}  Rf4 {[%clk 0:00:38]} 36. Rxh7 {[%clk 0:01:00]}  Rf2 {[%clk 0:00:38]} 37. Rh6 {[%clk 0:00:54]}  Kb7 {[%clk 0:00:37]} 38. g4 {[%clk 0:00:50]}  Rf3+ {[%clk 0:00:30]} 39. Kc2 {[%clk 0:00:48]}  fxg4 {[%clk 0:00:25]} 40. hxg4 {[%clk 0:00:47]}  Rg3 {[%clk 0:00:26]} 41. Rg6 {[%clk 0:00:45]}  Bd4 {[%clk 0:00:22]} 42. g5 {[%clk 0:00:39]}  Rc3+ {[%clk 0:00:20]} 43. Kd2 {[%clk 0:00:37]}  Rxc4 {[%clk 0:00:21]} 44. Kd3 {[%clk 0:00:38]}  Rxa4 {[%clk 0:00:21]} 45. Rg8 {[%clk 0:00:36]}  Ba1 {[%clk 0:00:20]} 46. g6 {[%clk 0:00:34]}  Rg4 {[%clk 0:00:21]} 47. Kc2 {[%clk 0:00:32]}  a4 {[%clk 0:00:20]} 48. Kb1 {[%clk 0:00:32]}  Bd4 {[%clk 0:00:20]} 49. Ka2 {[%clk 0:00:31]}  Rg3 {[%clk 0:00:19]} 50. Rd8 {[%clk 0:00:22]}  Bc5 {[%clk 0:00:19]} 51. Rd7+ {[%clk 0:00:22]}  Kc6 {[%clk 0:00:20]} 52. Rg7 {[%clk 0:00:20]}  Kb5 {[%clk 0:00:20]} 53. Rg8 {[%clk 0:00:20]}  Rg2+ {[%clk 0:00:20]} 54. Kb1 {[%clk 0:00:20]}  Bd4 {[%clk 0:00:20]} 55. Rb8+ {[%clk 0:00:19]}  Kc4 {[%clk 0:00:20]} 56. Rc8+ {[%clk 0:00:17]}  Kb3 {[%clk 0:00:20]} 57. Rb8+ {[%clk 0:00:17]}  Kc3 {[%clk 0:00:20]} 58. Rc8+ {[%clk 0:00:17]}  Kb4 {[%clk 0:00:19]} 59. Rb8+ {[%clk 0:00:17]}  Kc4 {[%clk 0:00:20]} 60. Rc8+ {[%clk 0:00:17]}  Bc5 {[%clk 0:00:21]} 61. Ra8 {[%clk 0:00:15]}  a3 {[%clk 0:00:20]} 62. Ra6 {[%clk 0:00:14]}  Kb3 {[%clk 0:00:21]} 63. Kc1 {[%clk 0:00:12]}  a2 {[%clk 0:00:19]} 64. Kd1 {[%clk 0:00:03]}  Ba3 {[%clk 0:00:18]} 65. g7 {[%clk 0:00:02]}  a1=Q# {[%clk 0:00:18]} 0-1


[Site "https://www.chess.com"]